[Event "*** Titled Tuesday Blitz"]
[Site "Chess.com"]
[Date "2020.03.03"]
[Round "9"]
[White "MixMasterChess"]
[Black "ChristianAlm"]
[Result "0-1"]
[WhiteElo "2101"]
[BlackElo "2335"]
[TimeControl "180+1"]
[EndTime "10:45:19 PST"]
[Termination "ChristianAlm won on time"]

1. e4 {[%clk 0:03:00.9]} 1... c5 {[%clk 0:02:59.5]} 2. Nf3 {[%clk 0:03:00]} 2...
d6 {[%clk 0:02:59.9]} 3. Bb5+ {[%clk 0:02:59.8]} 3... Bd7 {[%clk 0:02:59.3]} 4.
Bxd7+ {[%clk 0:02:59.5]} 4... Qxd7 {[%clk 0:03:00.2]} 5. O-O {[%clk 0:02:59.5]}
5... Nf6 {[%clk 0:03:00.7]} 6. Re1 {[%clk 0:02:58.6]} 6... Nc6 {[%clk
0:02:59.9]} 7. c4 {[%clk 0:02:57.1]} 7... g6 {[%clk 0:02:59.9]} 8. d4 {[%clk
0:02:56.8]} 8... cxd4 {[%clk 0:03:00.3]} 9. Nxd4 {[%clk 0:02:57]} 9... Bg7
{[%clk 0:03:01.2]} 10. Nc3 {[%clk 0:02:51.5]} 10... O-O {[%clk 0:03:00.4]} 11.
Be3 {[%clk 0:02:50.7]} 11... Ng4 {[%clk 0:02:58.6]} 12. Nxc6 {[%clk 0:02:45.8]}
12... bxc6 {[%clk 0:02:53.8]} 13. Bf4 {[%clk 0:02:33]} 13... Rab8 {[%clk
0:02:47]} 14. Rb1 {[%clk 0:02:24.4]} 14... Rfd8 {[%clk 0:02:35.5]} 15. h3 {[%clk
0:02:17.2]} 15... Nf6 {[%clk 0:02:24.8]} 16. b3 {[%clk 0:02:15.9]} 16... h6
{[%clk 0:02:09]} 17. Qc2 {[%clk 0:02:11.2]} 17... Rbc8 {[%clk 0:01:57.3]} 18.
Red1 {[%clk 0:02:10.1]} 18... Qe6 {[%clk 0:01:55]} 19. Re1 {[%clk 0:02:02.1]}
19... Kh7 {[%clk 0:01:53.6]} 20. Rbd1 {[%clk 0:02:00.9]} 20... Nd7 {[%clk
0:01:46.7]} 21. Bh2 {[%clk 0:01:51]} 21... Qf6 {[%clk 0:01:41.2]} 22. Ne2 {[%clk
0:01:44.9]} 22... Qb2 {[%clk 0:01:29.9]} 23. Qxb2 {[%clk 0:01:40.7]} 23... Bxb2
{[%clk 0:01:30.8]} 24. Rd2 {[%clk 0:01:36.5]} 24... Ba3 {[%clk 0:01:27.4]} 25.
Red1 {[%clk 0:01:35.6]} 25... Bb4 {[%clk 0:01:25.1]} 26. Rc2 {[%clk 0:01:12.6]}
26... Nc5 {[%clk 0:01:21.5]} 27. f3 {[%clk 0:01:11.3]} 27... Ne6 {[%clk
0:01:19.5]} 28. Kf1 {[%clk 0:01:07.4]} 28... Bc5 {[%clk 0:01:14.2]} 29. Bg1
{[%clk 0:01:03.6]} 29... Bxg1 {[%clk 0:01:12.9]} 30. Kxg1 {[%clk 0:01:03.3]}
30... Rd7 {[%clk 0:01:11.9]} 31. Kf2 {[%clk 0:01:03.1]} 31... Rcd8 {[%clk
0:01:11.9]} 32. Rcd2 {[%clk 0:01:03]} 32... f6 {[%clk 0:01:07.3]} 33. Ke3 {[%clk
0:01:02.4]} 33... Kg7 {[%clk 0:01:06.9]} 34. Nd4 {[%clk 0:01:01.1]} 34... Nxd4
{[%clk 0:01:05.1]} 35. Rxd4 {[%clk 0:01:01.1]} 35... Kf7 {[%clk 0:01:04.6]} 36.
c5 {[%clk 0:00:53.3]} 36... Ke6 {[%clk 0:01:04]} 37. cxd6 {[%clk 0:00:53.1]}
37... Rxd6 {[%clk 0:01:01.8]} 38. Rxd6+ {[%clk 0:00:47]} 38... exd6 {[%clk
0:00:59.6]} 39. Rc1 {[%clk 0:00:42.6]} 39... c5 {[%clk 0:00:58.4]} 40. Rc4
{[%clk 0:00:41.9]} 40... Rb8 {[%clk 0:00:57.8]} 41. Ra4 {[%clk 0:00:41.7]} 41...
Rb7 {[%clk 0:00:57.3]} 42. Ra6 {[%clk 0:00:40.5]} 42... f5 {[%clk 0:00:53.7]}
43. g4 {[%clk 0:00:37.7]} 43... fxe4 {[%clk 0:00:50.5]} 44. Kxe4 {[%clk
0:00:37.8]} 44... Rb4+ {[%clk 0:00:49.8]} 45. Ke3 {[%clk 0:00:35.9]} 45... Rb7
{[%clk 0:00:48.9]} 46. f4 {[%clk 0:00:35.9]} 46... Kd5 {[%clk 0:00:48.7]} 47. f5
{[%clk 0:00:33.1]} 47... gxf5 {[%clk 0:00:43.6]} 48. gxf5 {[%clk 0:00:31]} 48...
Ke5 {[%clk 0:00:43.8]} 49. Kf3 {[%clk 0:00:24]} 49... Rf7 {[%clk 0:00:41.9]} 50.
Kg4 {[%clk 0:00:23.6]} 50... h5+ {[%clk 0:00:41.2]} 51. Kxh5 {[%clk 0:00:22.4]}
51... Rxf5+ {[%clk 0:00:40.9]} 52. Kg6 {[%clk 0:00:20.1]} 52... Rf6+ {[%clk
0:00:39.4]} 53. Kg7 {[%clk 0:00:19.4]} 53... Rf3 {[%clk 0:00:36.4]} 54. h4
{[%clk 0:00:19.2]} 54... Rh3 {[%clk 0:00:35.2]} 55. Rxa7 {[%clk 0:00:18.4]}
55... Rxh4 {[%clk 0:00:34.9]} 56. Re7+ {[%clk 0:00:17.2]} 56... Kd4 {[%clk
0:00:34.6]} 57. a4 {[%clk 0:00:17.4]} 57... Rg4+ {[%clk 0:00:31.1]} 58. Kf6
{[%clk 0:00:16.7]} 58... Rg3 {[%clk 0:00:30.7]} 59. Rd7 {[%clk 0:00:15.6]} 59...
d5 {[%clk 0:00:27]} 60. Rb7 {[%clk 0:00:13.7]} 60... Rf3+ {[%clk 0:00:20.7]} 61.
Ke6 {[%clk 0:00:12.7]} 61... Re3+ {[%clk 0:00:20.7]} 62. Kd6 {[%clk 0:00:12.8]}
62... Rh3 {[%clk 0:00:21.6]} 63. Ke6 {[%clk 0:00:10.5]} 63... Rh6+ {[%clk
0:00:20.8]} 64. Kf5 {[%clk 0:00:10.5]} 64... c4 {[%clk 0:00:19.8]} 65. bxc4
{[%clk 0:00:09.7]} 65... dxc4 {[%clk 0:00:20.7]} 66. Rd7+ {[%clk 0:00:09]} 66...
Kc5 {[%clk 0:00:20.6]} 67. a5 {[%clk 0:00:06.2]} 67... Ra6 {[%clk 0:00:16.3]}
68. Ke4 {[%clk 0:00:06.2]} 68... Re6+ {[%clk 0:00:14.7]} 69. Kf3 {[%clk
0:00:04.6]} 69... Re8 {[%clk 0:00:14.4]} 70. a6 {[%clk 0:00:02.7]} 70... c3
{[%clk 0:00:14.3]} 71. Rc7+ {[%clk 0:00:01.3]} 71... Kd4 {[%clk 0:00:13.8]} 0-1

[Event "*** Titled Tuesday Blitz"]
[Site "Chess.com"]
[Date "2020.03.03"]
[Round "9"]
[White "Sunnika"]
[Black "ronaldbrizuela"]
[Result "0-1"]
[WhiteElo "2385"]
[BlackElo "2625"]
[TimeControl "180+1"]
[EndTime "10:45:37 PST"]
[Termination "ronaldbrizuela won on time"]

1. d4 {[%clk 0:03:00.9]} 1... d5 {[%clk 0:02:59.3]} 2. c4 {[%clk 0:03:01]} 2...
e6 {[%clk 0:03:00.2]} 3. g3 {[%clk 0:03:00.5]} 3... c5 {[%clk 0:03:00.6]} 4.
cxd5 {[%clk 0:03:00.1]} 4... exd5 {[%clk 0:03:01.5]} 5. Nf3 {[%clk 0:02:58.9]}
5... Nc6 {[%clk 0:03:02.4]} 6. Bg2 {[%clk 0:02:59.3]} 6... Nf6 {[%clk
0:03:03.3]} 7. O-O {[%clk 0:02:59.8]} 7... Be7 {[%clk 0:03:03.5]} 8. dxc5 {[%clk
0:02:53]} 8... Bxc5 {[%clk 0:03:04.4]} 9. Qd2 {[%clk 0:02:52.8]} 9... O-O {[%clk
0:03:03.9]} 10. a3 {[%clk 0:02:51.4]} 10... Be7 {[%clk 0:03:03.5]} 11. Nc3
{[%clk 0:02:44]} 11... Be6 {[%clk 0:03:02.8]} 12. Nd4 {[%clk 0:02:40.8]} 12...
Nxd4 {[%clk 0:02:57.2]} 13. Qxd4 {[%clk 0:02:39.8]} 13... b6 {[%clk 0:02:56.6]}
14. b4 {[%clk 0:02:28.4]} 14... Rc8 {[%clk 0:02:55.2]} 15. Bb2 {[%clk
0:02:28.8]} 15... Rc4 {[%clk 0:02:54]} 16. Qd3 {[%clk 0:02:28.7]} 16... Qc7
{[%clk 0:02:14.9]} 17. Nb5 {[%clk 0:02:24.1]} 17... Qd7 {[%clk 0:02:06.2]} 18.
Nd4 {[%clk 0:02:23.6]} 18... Bh3 {[%clk 0:01:57.3]} 19. Rac1 {[%clk 0:02:18.6]}
19... Rfc8 {[%clk 0:01:55.2]} 20. Rfd1 {[%clk 0:01:59.2]} 20... Bxg2 {[%clk
0:01:22.1]} 21. Kxg2 {[%clk 0:01:57.8]} 21... g6 {[%clk 0:01:14.3]} 22. Nf3
{[%clk 0:01:55]} 22... Qe6 {[%clk 0:01:08.4]} 23. e3 {[%clk 0:01:41.1]} 23... a5
{[%clk 0:00:56.5]} 24. bxa5 {[%clk 0:01:34.9]} 24... bxa5 {[%clk 0:00:57.4]} 25.
Rxc4 {[%clk 0:01:22]} 25... dxc4 {[%clk 0:00:52.4]} 26. Qc3 {[%clk 0:01:22.4]}
26... Rb8 {[%clk 0:00:42.6]} 27. Nd2 {[%clk 0:01:01]} 27... Rd8 {[%clk
0:00:17.2]} 28. Rc1 {[%clk 0:00:20.7]} 28... Rd3 {[%clk 0:00:12.9]} 29. Qxc4
{[%clk 0:00:11.7]} 29... Rxd2 {[%clk 0:00:11.9]} 30. Qxe6 {[%clk 0:00:10.1]}
30... fxe6 {[%clk 0:00:11.7]} 31. Bc3 {[%clk 0:00:10.3]} 31... Ra2 {[%clk
0:00:10.6]} 32. Bxa5 {[%clk 0:00:09.7]} 32... Ne4 {[%clk 0:00:09.4]} 33. Be1
{[%clk 0:00:08.1]} 33... Bxa3 {[%clk 0:00:08.7]} 34. Rc6 {[%clk 0:00:06.8]}
34... Kf7 {[%clk 0:00:08.1]} 35. Rc4 {[%clk 0:00:06.3]} 35... Nf6 {[%clk
0:00:07.1]} 36. Ra4 {[%clk 0:00:06.2]} 36... Ra1 {[%clk 0:00:06.8]} 37. Bb4
{[%clk 0:00:05.3]} 37... Bb2 {[%clk 0:00:06.6]} 38. Rxa1 {[%clk 0:00:05.4]}
38... Bxa1 {[%clk 0:00:06.5]} 39. f3 {[%clk 0:00:06]} 39... Nd7 {[%clk 0:00:07]}
40. e4 {[%clk 0:00:05.5]} 40... Bf6 {[%clk 0:00:07.9]} 41. Bd2 {[%clk
0:00:04.9]} 41... Be7 {[%clk 0:00:08.8]} 42. h4 {[%clk 0:00:04.5]} 42... e5
{[%clk 0:00:09.7]} 43. Be3 {[%clk 0:00:03.9]} 43... Ke6 {[%clk 0:00:10.6]} 44.
Bd2 {[%clk 0:00:03.3]} 44... Bc5 {[%clk 0:00:11]} 45. Kh3 {[%clk 0:00:03]} 45...
Bd4 {[%clk 0:00:11.2]} 46. Kg4 {[%clk 0:00:02.2]} 46... Kf6 {[%clk 0:00:10.3]}
47. h5 {[%clk 0:00:02]} 47... Nc5 {[%clk 0:00:08.1]} 48. hxg6 {[%clk 0:00:02.2]}
48... hxg6 {[%clk 0:00:08]} 49. Bg5+ {[%clk 0:00:02.6]} 49... Kf7 {[%clk
0:00:07.3]} 50. Bd2 {[%clk 0:00:03]} 50... Nd3 {[%clk 0:00:06.6]} 51. Kh3 {[%clk
0:00:02.6]} 51... Ke6 {[%clk 0:00:06.4]} 52. Kg2 {[%clk 0:00:03]} 52... Nc5
{[%clk 0:00:06.3]} 53. f4 {[%clk 0:00:03.2]} 53... Nxe4 {[%clk 0:00:05.9]} 54.
Bc1 {[%clk 0:00:03.7]} 54... exf4 {[%clk 0:00:06.1]} 55. Bxf4 {[%clk 0:00:03.6]}
55... Kf5 {[%clk 0:00:06.1]} 56. Bc1 {[%clk 0:00:03.4]} 56... Be5 {[%clk
0:00:06.4]} 57. Be3 {[%clk 0:00:03.1]} 57... Nxg3 {[%clk 0:00:06.3]} 58. Bc1
{[%clk 0:00:03.7]} 58... Ne4 {[%clk 0:00:06.8]} 59. Be3 {[%clk 0:00:03.7]} 59...
Bf4 {[%clk 0:00:06.9]} 60. Bd4 {[%clk 0:00:03.9]} 60... g5 {[%clk 0:00:07]} 61.
Bb6 {[%clk 0:00:03.7]} 61... g4 {[%clk 0:00:07.9]} 62. Bd4 {[%clk 0:00:03.2]}
62... Ng5 {[%clk 0:00:07.3]} 63. Bb6 {[%clk 0:00:02.7]} 63... Nf3 {[%clk
0:00:07.2]} 64. Bf2 {[%clk 0:00:02]} 64... Kg5 {[%clk 0:00:05.8]} 65. Kf1 {[%clk
0:00:01.6]} 65... Be5 {[%clk 0:00:02.7]} 66. Kg2 {[%clk 0:00:01.9]} 66... Bd4
{[%clk 0:00:03]} 67. Bg3 {[%clk 0:00:01.8]} 67... Be3 {[%clk 0:00:03.9]} 68. Kf1
{[%clk 0:00:01.9]} 68... Bf4 {[%clk 0:00:04.8]} 69. Bf2 {[%clk 0:00:02.1]} 69...
Kf5 {[%clk 0:00:05.7]} 70. Kg2 {[%clk 0:00:01.8]} 70... Ke4 {[%clk 0:00:06.6]}
71. Bg3 {[%clk 0:00:01.5]} 71... Bxg3 {[%clk 0:00:06.1]} 72. Kxg3 {[%clk
0:00:02.4]} 72... Kf5 {[%clk 0:00:07]} 73. Kg2 {[%clk 0:00:02.5]} 73... Kf4
{[%clk 0:00:07.9]} 74. Kf2 {[%clk 0:00:03.2]} 74... g3+ {[%clk 0:00:08.8]} 75.
Kg2 {[%clk 0:00:04.1]} 75... Kg4 {[%clk 0:00:09.6]} 76. Kh1 {[%clk 0:00:03.3]}
76... Ng5 {[%clk 0:00:10.5]} 77. Kg2 {[%clk 0:00:03.5]} 77... Kh4 {[%clk
0:00:10.6]} 78. Kh1 {[%clk 0:00:03.8]} 78... Kh3 {[%clk 0:00:10]} 79. Kg1 {[%clk
0:00:04.7]} 79... g2 {[%clk 0:00:10.2]} 80. Kf2 {[%clk 0:00:04.8]} 80... Kh2
{[%clk 0:00:11.1]} 81. Ke3 {[%clk 0:00:04.6]} 81... g1=Q+ {[%clk 0:00:12]} 0-1